fUST/lending_fUST_20250530
["ID","MTS","AMOUNT","RATE_DAILY","PERIOD"]
[363040681,1748559039146,-430.0,0.00019452,2]
[363040683,1748559039155,-500.0,0.00019452,2]
[363040685,1748559039165,-578.85,0.00019452,2]
[363040687,1748559039175,-615.21,0.00019452,2]
[363040689,1748559039184,-913.66,0.00019452,2]
[363040691,1748559039193,-741.95,0.00019452,2]
[363040693,1748559039203,-430.0,0.00019452,2]
[363040695,1748559039212,-430.0,0.00019452,2]
[363040697,1748559039221,-430.0,0.00019452,2]
[363040699,1748559039230,-2799.2,0.00019452,2]
[363040701,1748559039240,-430.0,0.00019452,2]
[363040703,1748559039250,-517.21,0.00019452,2]
[363040705,1748559039260,-430.0,0.00019452,2]
[363040707,1748559039270,-430.0,0.00019452,2]
[363040709,1748559039279,-430.0,0.00019452,2]
[363040711,1748559039289,-1019.32,0.00019452,2]
[363040713,1748559039298,-430.0,0.00019452,2]
[363040715,1748559039307,-3424.75,0.00019452,2]
[363040717,1748559039320,-430.0,0.00019452,2]
[363040719,1748559039329,-292.71,0.00019452,2]
[363040721,1748559039339,-430.0,0.00019452,2]
[363040723,1748559039348,-430.0,0.00019452,2]
[363040725,1748559039358,-1169.52,0.00019452,2]
[363040727,1748559039366,-408.66108445,0.00019452,2]
[363040728,1748559039376,-430.0,0.00019452,2]
[363040730,1748559039386,-430.0,0.00019452,2]
[363040731,1748559039395,-2693.38,0.00019452,2]
[363040732,1748559039405,-430.0,0.00019452,2]
[363040733,1748559039414,-430.0,0.00019452,2]
[363040734,1748559039423,-2725.7,0.00019452,2]
[363040735,1748559039433,-421.32,0.00019452,2]
[363040736,1748559039443,-430.35,0.00019452,2]
[363040737,1748559039453,-752.37,0.00019452,2]
[363040739,1748559039463,-500.0,0.00019473,2]
[363040741,1748559039473,-500.0,0.00019473,2]
[363040743,1748559039482,-500.83744052,0.00019473,2]
[363040745,1748559039492,-1632.27489707,0.00019489,2]
[363040747,1748559039501,-546.2439137,0.0001968,2]
[363040749,1748559039510,-500.0,0.00019725,2]
[363040750,1748559039519,-701.71,0.00019725,2]
[363040752,1748559039529,-701.71,0.00019725,2]
[363040754,1748559039538,-701.71,0.00019725,2]
[363040756,1748559039549,-701.71,0.00019725,2]
[363040758,1748559039558,-701.71,0.00019725,2]
[363040760,1748559039569,-701.71,0.00019725,2]
[363040762,1748559039579,-701.8180297,0.00019725,2]
[363040764,1748559039588,-430.0,0.00019726,2]
[363040766,1748559039598,-430.0,0.00019726,2]
[363040768,1748559039608,-430.0,0.00019726,2]
[363040770,1748559039617,-285.26,0.00019726,2]
[363040781,1748559039715,-518.27694409,0.00019726,2]
[363040783,1748559039724,-430.0,0.00019726,2]
[363040786,1748559039734,-430.0,0.00019726,2]
[363040789,1748559039743,-290.0,0.00019726,2]
[363040792,1748559039753,-430.0,0.00019726,2]
[363040794,1748559039762,-430.0,0.00019726,2]
[363040796,1748559039771,-430.0,0.00019726,2]
[363040798,1748559039781,-443.68,0.00019726,2]
[363040800,1748559039790,-430.0,0.00019726,2]
[363040802,1748559039800,-260.0,0.00019726,2]
[363040804,1748559039810,-430.0,0.00019726,2]
[363040806,1748559039821,-430.0,0.00019726,2]
[363040808,1748559039830,-430.0,0.00019726,2]
[363040810,1748559039839,-430.0,0.00019726,2]
[363040812,1748559039849,-430.0,0.00019726,2]
[363040814,1748559039858,-430.0,0.00019726,2]
[363040816,1748559039868,-500.0,0.00019726,2]
[363040818,1748559039878,-1131.49,0.00019726,2]
[363040820,1748559039888,-681.15,0.00019726,2]
[363040822,1748559039897,-430.0,0.00019726,2]
[363040824,1748559039907,-430.0,0.00019726,2]
[363040826,1748559039917,-430.0,0.00019726,2]
[363040828,1748559039927,-853.32,0.00019726,2]
[363040830,1748559039936,-430.0,0.00019726,2]
[363040832,1748559039946,-430.0,0.00019726,2]
[363040834,1748559039956,-430.0,0.00019726,2]
[363040836,1748559039966,-430.0,0.00019726,2]
[363040838,1748559039975,-458.44,0.00019726,2]
[363040840,1748559039985,-430.0,0.00019726,2]
[363040842,1748559039995,-430.0,0.00019726,2]
[363040844,1748559040007,-430.0,0.00019726,2]
[363040846,1748559040017,-430.0,0.00019726,2]
[363040848,1748559040026,-430.0,0.00019726,2]
[363040850,1748559040035,-430.0,0.00019726,2]
[363040852,1748559040045,-430.0,0.00019726,2]
[363040854,1748559040055,-760.73,0.00019726,2]
[363040856,1748559040064,-430.0,0.00019726,2]
[363040858,1748559040075,-430.0,0.00019726,2]
[363040860,1748559040084,-327.65218454,0.00019726,2]
[363040862,1748559040095,-430.0,0.00019726,2]
[363040864,1748559040104,-430.0,0.00019726,2]
[363040866,1748559040113,-574.16,0.00019726,2]
[363040868,1748559040123,-430.0,0.00019726,2]
[363040870,1748559040132,-430.0,0.00019726,2]
[363040872,1748559040141,-430.0,0.00019726,2]
[363040874,1748559040150,-430.0,0.00019726,2]
[363040876,1748559040160,-430.0,0.00019726,2]
[363040878,1748559040170,-430.0,0.00019726,2]
[363040880,1748559040179,-430.0,0.00019726,2]
[363040882,1748559040188,-430.0,0.00019726,2]
[363040884,1748559040198,-430.0,0.00019726,2]
[363040886,1748559040208,-430.0,0.00019726,2]
[363040888,1748559040218,-430.0,0.00019726,2]
[363040890,1748559040227,-430.0,0.00019726,2]
[363040892,1748559040237,-773.76,0.00019726,2]
[363040894,1748559040246,-576.00576966,0.00019726,2]
[363040896,1748559040255,-430.0,0.00019726,2]
[363040898,1748559040265,-4753.22,0.00019726,2]
[363040900,1748559040274,-430.0,0.00019726,2]
[363040902,1748559040283,-430.0,0.00019726,2]
[363040904,1748559040294,-430.0,0.00019726,2]
[363040905,1748559040303,-662.19,0.00019726,2]
[363040907,1748559040313,-430.0,0.00019726,2]
[363040909,1748559040323,-2584.0299294,0.00019726,2]
[363040918,1748559040400,-500.0,0.00019177,2]
[363040920,1748559040409,-533.68484469,0.00019177,2]
[363040922,1748559040419,-500.0,0.00019177,2]
[363040924,1748559040428,-500.0,0.00019177,2]
[363040926,1748559040437,-311.6232408,0.00019178,2]
[363040928,1748559040447,-430.0,0.00019178,2]
[363040930,1748559040457,-1090.8000706,0.00019726,2]
[363040932,1748559040466,-430.0,0.00019726,2]
[363040934,1748559040475,-430.0,0.00019726,2]
[363040936,1748559040485,-430.0,0.00019726,2]
[363040939,1748559040495,-430.0,0.00019726,2]
[363040941,1748559040504,-589.21,0.00019726,2]
[363040943,1748559040514,-2053.24,0.00019726,2]
[363040944,1748559040523,-430.0,0.00019726,2]
[363040946,1748559040532,-430.0,0.00019726,2]
[363040948,1748559040541,-430.0,0.00019726,2]
[363040950,1748559040550,-720.56,0.00019726,2]
[363040952,1748559040560,-696.31,0.00019726,2]
[363040954,1748559040569,-2613.16,0.00019726,2]
[363040956,1748559040579,-430.0,0.00019726,2]
[363040958,1748559040588,-430.0,0.00019726,2]
[363040960,1748559040597,-430.0,0.00019726,2]
[363040962,1748559040606,-430.0,0.00019726,2]
[363040964,1748559040615,-430.0,0.00019726,2]
[363040966,1748559040625,-430.0,0.00019726,2]
[363040968,1748559040634,-430.0,0.00019726,2]
[363040970,1748559040643,-4412.79,0.00019726,2]
[363040972,1748559040652,-968.5,0.00019726,2]
[363040974,1748559040662,-209.70810996,0.00019726,2]
[363040976,1748559040671,-430.0,0.00019726,2]
[363040978,1748559040680,-517.0,0.00019726,2]
[363040980,1748559040690,-644.49,0.00019726,2]
[363040982,1748559040699,-430.0,0.00019726,2]
[363040984,1748559040708,-430.0,0.00019726,2]
[363040986,1748559040717,-430.0,0.00019726,2]
[363040988,1748559040726,-386.71,0.00019726,2]
[363040990,1748559040736,-953.49,0.00019726,2]
[363040992,1748559040746,-430.0,0.00019726,2]
[363040994,1748559040755,-2879.71,0.00019726,2]
[363040996,1748559040765,-458.78,0.00019726,2]
[363040998,1748559040774,-697.57,0.00019726,2]
[363041000,1748559040784,-430.0,0.00019726,2]
[363041002,1748559040794,-3822.31,0.00019726,2]
[363041004,1748559040803,-430.0,0.00019726,2]
[363041006,1748559040812,-848.19,0.00019726,2]
[363041008,1748559040822,-430.0,0.00019726,2]
[363041010,1748559040831,-1041.37,0.00019726,2]
[363041012,1748559040840,-430.0,0.00019726,2]
[363041014,1748559040849,-8172.02,0.00019726,2]
[363041016,1748559040859,-430.0,0.00019726,2]
[363041018,1748559040869,-1022.41,0.00019726,2]
[363041020,1748559040878,-1425.87,0.00019726,2]
[363041022,1748559040887,-5104.13,0.00019726,2]
[363041025,1748559040897,-1326.38,0.00019726,2]
[363041027,1748559040906,-873.84,0.00019726,2]
[363041029,1748559040916,-7369.0,0.00019726,2]
[363041031,1748559040925,-467.28,0.00019726,2]
[363041033,1748559040934,-500.0,0.00019726,2]
[363041035,1748559040943,-430.0,0.00019726,2]
[363041037,1748559040952,-2070.38,0.00019726,2]
[363041039,1748559040961,-2055.19,0.00019726,2]
[363041041,1748559040970,-430.0,0.00019726,2]
[363041043,1748559040979,-430.0,0.00019726,2]
[363041045,1748559040988,-1511.1,0.00019726,2]
[363041047,1748559040997,-430.0,0.00019726,2]
[363041049,1748559041010,-430.0,0.00019726,2]
[363041050,1748559041019,-430.0,0.00019726,2]
[363041052,1748559041029,-1350.97,0.00019726,2]
[363041054,1748559041038,-1584.57,0.00019726,2]
[363041057,1748559041049,-750.88,0.00019726,2]
[363041059,1748559041059,-1425.46,0.00019726,2]
[363041060,1748559041068,-430.0,0.00019726,2]
[363041062,1748559041079,-722.11,0.00019726,2]
[363041064,1748559041088,-760.02,0.00019726,2]
[363041066,1748559041099,-430.0,0.00019726,2]
[363041068,1748559041108,-430.0,0.00019726,2]
[363041071,1748559041119,-500.0,0.00019726,2]
[363041072,1748559041128,-578.85,0.00019726,2]
[363041074,1748559041137,-615.21,0.00019726,2]
[363041076,1748559041147,-913.66,0.00019726,2]
[363041078,1748559041156,-741.95,0.00019726,2]
[363041081,1748559041166,-480.11971891,0.00019726,2]
[363041082,1748559041176,-430.0,0.00019726,2]
[363041084,1748559041185,-430.0,0.00019726,2]
[363041086,1748559041195,-2799.2,0.00019726,2]
[363041089,1748559041204,-430.0,0.00019726,2]
[363041091,1748559041213,-517.21,0.00019726,2]
[363041092,1748559041223,-430.0,0.00019726,2]
[363041094,1748559041232,-430.0,0.00019726,2]
[363041097,1748559041242,-234.70124101,0.00019726,2]
[363041098,1748559041251,-1019.32,0.00019726,2]
[363041100,1748559041260,-430.0,0.00019726,2]
[363041102,1748559041270,-3424.75,0.00019726,2]
[363041104,1748559041280,-430.0,0.00019726,2]
[363041107,1748559041289,-430.0,0.00019726,2]
[363041109,1748559041299,-1169.52,0.00019726,2]
[363041111,1748559041309,-430.0,0.00019726,2]
[363041112,1748559041318,-430.0,0.00019726,2]
[363041114,1748559041327,-2693.38,0.00019726,2]
[363041117,1748559041337,-430.0,0.00019726,2]
[363041118,1748559041347,-2725.7,0.00019726,2]
[363041120,1748559041356,-430.35,0.00019726,2]
[363041122,1748559041365,-752.37,0.00019726,2]
[363041124,1748559041375,-546.2439137,0.00019808,2]
[363041126,1748559041385,-1285.30327751,0.00019808,2]
[363041128,1748559041394,-1632.27489707,0.000199,2]
[363041130,1748559041404,-3259.03433221,0.000199,2]
[363041133,1748559041414,-500.0,0.00019973,2]
[363041135,1748559041424,-629.56515353,0.00019973,2]
[363041136,1748559041433,-500.0,0.00019973,2]
[363041138,1748559041443,-500.0,0.00019973,2]
[363041140,1748559041453,-500.0,0.00019973,2]
[363041152,1748559041557,-500.0,0.00019973,2]
[363041155,1748559041568,-613.20969215,0.00019973,2]
[363041156,1748559041577,-501.82350413,0.00019973,2]
[363041158,1748559041587,-600.0,0.00019973,2]
[363041160,1748559041596,-584.41539273,0.00019973,2]
[363041163,1748559041607,-500.0,0.00019973,2]
[363041165,1748559041617,-500.46214006,0.00019973,2]
[363041167,1748559041626,-500.0,0.00019973,2]
[363041169,1748559041635,-500.0,0.00019973,2]
[363041171,1748559041645,-500.97442319,0.00019973,2]
[363041173,1748559041654,-518.30751424,0.00019973,2]
[363041175,1748559041664,-500.0,0.00019973,2]
[363041177,1748559041673,-160.0,0.00019992,2]
[363041179,1748559041683,-842.5625,0.00019992,2]
[363041181,1748559041692,-160.0,0.00019992,2]
[363041183,1748559041701,-22018.10824042,0.0002,3]
[363041185,1748559041710,-242110.55014994,0.0002,2]
[363041201,1748559041862,-122101.84553516,0.0002,2]
[363041203,1748559041873,-12660.97845086,0.0002,3]
[363041205,1748559041882,-430.0,0.0002,2]
[363041207,1748559041892,-430.0,0.0002,2]
[363041209,1748559041901,-430.0,0.0002,2]
[363041211,1748559041910,-430.0,0.0002,2]
[363041213,1748559041920,-1015.0,0.0002,2]
[363041215,1748559041929,-430.0,0.0002,2]
[363041218,1748559041939,-430.0,0.0002,2]
[363041220,1748559041948,-430.0,0.0002,2]
[363041222,1748559041957,-430.0,0.0002,2]
[363041224,1748559041966,-430.0,0.0002,2]
[363041226,1748559041976,-430.0,0.0002,2]
[363041227,1748559041985,-430.0,0.0002,2]
[363041229,1748559041995,-430.0,0.0002,2]
[363041231,1748559042006,-430.0,0.0002,2]
[363041233,1748559042016,-500.0,0.0002,2]
[363041236,1748559042025,-1131.49,0.0002,2]
[363041238,1748559042035,-681.15,0.0002,2]
[363041240,1748559042044,-430.0,0.0002,2]
[363041241,1748559042054,-430.0,0.0002,2]
[363041243,1748559042064,-530.0,0.0002,2]
[363041245,1748559042074,-853.32,0.0002,2]
[363041247,1748559042085,-430.0,0.0002,2]
[363041249,1748559042095,-430.0,0.0002,2]
[363041251,1748559042105,-430.0,0.0002,2]
[363041253,1748559042114,-430.0,0.0002,2]
[363041255,1748559042124,-458.44,0.0002,2]
[363041257,1748559042134,-430.0,0.0002,2]
[363041259,1748559042143,-430.0,0.0002,2]
[363041261,1748559042152,-430.0,0.0002,2]
[363041263,1748559042162,-430.0,0.0002,2]
[363041265,1748559042172,-430.0,0.0002,2]
[363041267,1748559042181,-337.11,0.0002,2]
[363041269,1748559042191,-430.0,0.0002,2]
[363041271,1748559042201,-760.73,0.0002,2]
[363041273,1748559042210,-229.99,0.0002,2]
[363041275,1748559042219,-430.0,0.0002,2]
[363041277,1748559042228,-430.0,0.0002,2]
[363041279,1748559042238,-430.0,0.0002,2]
[363041281,1748559042247,-430.0,0.0002,2]
[363041282,1748559042256,-180.0,0.0002,2]
[363041284,1748559042265,-430.0,0.0002,2]
[363041286,1748559042274,-430.0,0.0002,2]
[363041288,1748559042283,-156.31,0.0002,2]
[363041290,1748559042292,-457.06370267,0.0002,2]
[363041292,1748559042301,-430.0,0.0002,2]
[363041294,1748559042310,-430.0,0.0002,2]
[363041296,1748559042321,-430.0,0.0002,2]
[363041298,1748559042330,-497.34028706,0.0002,2]
[363041300,1748559042339,-430.0,0.0002,2]
[363041302,1748559042348,-773.76,0.0002,2]
[363041304,1748559042357,-570.0,0.0002,2]
[363041306,1748559042367,-4753.22,0.0002,2]
[363041308,1748559042376,-430.0,0.0002,2]
[363041310,1748559042385,-430.0,0.0002,2]
[363041312,1748559042395,-430.0,0.0002,2]
[363041314,1748559042404,-662.19,0.0002,2]
[363041316,1748559042414,-430.0,0.0002,2]
[363041318,1748559042423,-3674.83,0.0002,2]
[363041320,1748559042433,-430.0,0.0002,2]
[363041322,1748559042442,-430.0,0.0002,2]
[363041324,1748559042451,-430.0,0.0002,2]
[363041326,1748559042460,-430.0,0.0002,2]
[363041328,1748559042469,-589.21,0.0002,2]
[363041330,1748559042478,-2053.24,0.0002,2]
[363041332,1748559042487,-430.0,0.0002,2]
[363041333,1748559042496,-430.0,0.0002,2]
[363041335,1748559042505,-430.0,0.0002,2]
[363041337,1748559042514,-720.56,0.0002,2]
[363041339,1748559042524,-696.31,0.0002,2]
[363041341,1748559042533,-2613.16,0.0002,2]
[363041343,1748559042541,-430.0,0.0002,2]
[363041345,1748559042550,-430.0,0.0002,2]
[363041347,1748559042559,-499.02889135,0.0002,2]
[363041349,1748559042568,-430.0,0.0002,2]
[363041351,1748559042577,-430.0,0.0002,2]
[363041353,1748559042586,-430.0,0.0002,2]
[363041355,1748559042595,-430.0,0.0002,2]
[363041357,1748559042604,-4412.79,0.0002,2]
[363041359,1748559042613,-968.5,0.0002,2]
[363041362,1748559042623,-430.0,0.0002,2]
[363041365,1748559042632,-517.0,0.0002,2]
[363041368,1748559042641,-644.49,0.0002,2]
[363041371,1748559042650,-430.0,0.0002,2]
[363041373,1748559042659,-430.0,0.0002,2]
[363041375,1748559042668,-430.0,0.0002,2]
[363041377,1748559042678,-953.49,0.0002,2]
[363041379,1748559042687,-430.0,0.0002,2]
[363041381,1748559042696,-2879.71,0.0002,2]
[363041383,1748559042704,-458.78,0.0002,2]
[363041385,1748559042713,-697.57,0.0002,2]
[363041387,1748559042722,-430.0,0.0002,2]
[363041389,1748559042731,-3822.31,0.0002,2]
[363041391,1748559042740,-430.0,0.0002,2]
[363041393,1748559042750,-848.19,0.0002,2]
[363041395,1748559042759,-248.26,0.0002,2]
[363041397,1748559042767,-1041.37,0.0002,2]
[363041399,1748559042776,-430.0,0.0002,2]
[363041401,1748559042785,-8172.02,0.0002,2]
[363041403,1748559042794,-430.0,0.0002,2]
[363041405,1748559042803,-1022.41,0.0002,2]
[363041406,1748559042812,-1425.87,0.0002,2]
[363041408,1748559042821,-5104.13,0.0002,2]
[363041410,1748559042829,-1326.38,0.0002,2]
[363041412,1748559042838,-873.84,0.0002,2]
[363041414,1748559042847,-7369.0,0.0002,2]
[363041415,1748559042856,-467.28,0.0002,2]
[363041416,1748559042866,-500.0,0.0002,2]
[363041417,1748559042875,-430.0,0.0002,2]
[363041418,1748559042885,-2070.38,0.0002,2]
[363041419,1748559042894,-2055.19,0.0002,2]
[363041420,1748559042903,-430.0,0.0002,2]
[363041421,1748559042912,-430.0,0.0002,2]
[363041422,1748559043014,-1511.1,0.0002,2]
[363041423,1748559043023,-430.0,0.0002,2]
[363041424,1748559043032,-430.0,0.0002,2]
[363041425,1748559043042,-430.0,0.0002,2]
[363041426,1748559043051,-1350.97,0.0002,2]
[363041427,1748559043060,-1584.57,0.0002,2]
[363041428,1748559043070,-750.88,0.0002,2]
[363041429,1748559043079,-1425.46,0.0002,2]
[363041430,1748559043089,-430.0,0.0002,2]
[363041431,1748559043098,-722.11,0.0002,2]
[363041432,1748559043108,-760.02,0.0002,2]
[363041433,1748559043118,-430.0,0.0002,2]
[363041434,1748559043127,-430.0,0.0002,2]
[363041435,1748559043136,-485.37,0.0002,2]
[363041436,1748559043145,-578.85,0.0002,2]
[363041437,1748559043154,-615.21,0.0002,2]
[363041438,1748559043163,-913.66,0.0002,2]
[363041439,1748559043172,-741.95,0.0002,2]
[363041440,1748559043182,-430.0,0.0002,2]
[363041441,1748559043191,-430.0,0.0002,2]
[363041442,1748559043200,-2799.2,0.0002,2]
[363041443,1748559043209,-430.0,0.0002,2]
[363041444,1748559043219,-517.21,0.0002,2]
[363041445,1748559043228,-430.0,0.0002,2]
[363041446,1748559043237,-430.0,0.0002,2]
[363041447,1748559043247,-1019.32,0.0002,2]
[363041448,1748559043256,-430.0,0.0002,2]
[363041449,1748559043265,-3424.75,0.0002,2]
[363041450,1748559043275,-508.72458484,0.0002,2]
[363041451,1748559043284,-1169.52,0.0002,2]
[363041454,1748559043293,-430.0,0.0002,2]
[363041457,1748559043302,-430.0,0.0002,2]
[363041459,1748559043312,-2693.38,0.0002,2]
[363041460,1748559043321,-423.3646321,0.0002,2]
[363041461,1748559043331,-2725.7,0.0002,2]
[363041462,1748559043340,-430.35,0.0002,2]
[363041463,1748559043349,-314.78059479,0.00020004,2]
[363041464,1748559043359,-160.0,0.00020004,2]
[363041465,1748559043368,-160.0,0.00020004,2]
[363041466,1748559043378,-160.0,0.00020004,2]
[363041467,1748559043387,-12660.97845086,0.00020004,2]
[363041468,1748559043397,-160.0,0.00020004,2]
[363041469,1748559043406,-423.31762986,0.00020004,2]
[363041470,1748559043416,-1000.0,0.00020021,2]
[363041471,1748559043425,-3259.03433194,0.00020072,2]
[363041472,1748559043434,-151.0,0.000201,4]
[363041473,1748559043443,-633.891616,0.00020187,2]
[363041474,1748559043453,-151.0,0.000202,4]
[363041475,1748559043462,-3259.03433194,0.00020245,2]
[363041476,1748559043471,-546.2439137,0.00020267,2]
[363041477,1748559043480,-314.78059479,0.00020272,3]
[363041478,1748559043489,-212.70147903,0.00020273,3]
[363041479,1748559043499,-435.0265787,0.00020273,2]
[363041480,1748559043508,-430.0,0.00020273,2]
[363041481,1748559043518,-430.0,0.00020273,2]
[363041482,1748559043527,-430.0,0.00020273,2]
[363041483,1748559043537,-430.0,0.00020273,2]
[363041484,1748559043546,-430.0,0.00020273,2]
[363041485,1748559043555,-430.0,0.00020273,2]
[363041486,1748559043565,-565.00232136,0.00020273,2]
[363041487,1748559043574,-500.0,0.00020273,2]
[363041488,1748559043584,-1131.49,0.00020273,2]
[363041489,1748559043592,-681.15,0.00020273,2]
[363041490,1748559043601,-448.15956243,0.00020273,2]
[363041491,1748559043611,-430.0,0.00020273,2]
[363041493,1748559043620,-853.32,0.00020273,2]
[363041495,1748559043630,-430.0,0.00020273,2]
[363041496,1748559043639,-570.0,0.00020273,2]
[363041498,1748559043648,-430.0,0.00020273,2]
[363041500,1748559043658,-430.0,0.00020273,2]
[363041502,1748559043667,-458.44,0.00020273,2]
[363041504,1748559043676,-430.0,0.00020273,2]
[363041506,1748559043686,-430.0,0.00020273,2]
[363041508,1748559043695,-234.842215,0.00020273,2]
[363041510,1748559043704,-430.0,0.00020273,2]
[363041512,1748559043713,-223.83,0.00020273,2]
[363041514,1748559043722,-760.73,0.00020273,2]
[363041516,1748559043732,-430.0,0.00020273,2]
[363041518,1748559043741,-430.0,0.00020273,2]
[363041520,1748559043751,-430.0,0.00020273,2]
[363041523,1748559043760,-430.0,0.00020273,2]
[363041524,1748559043769,-430.0,0.00020273,2]
[363041526,1748559043779,-430.0,0.00020273,2]
[363041529,1748559043788,-430.0,0.00020273,2]
[363041530,1748559043797,-430.0,0.00020273,2]
[363041532,1748559043806,-430.0,0.00020273,2]
[363041534,1748559043815,-430.0,0.00020273,2]
[363041536,1748559043824,-773.76,0.00020273,2]
[363041538,1748559043833,-4753.22,0.00020273,2]
[363041540,1748559043842,-550.0,0.00020273,2]
[363041543,1748559043851,-430.0,0.00020273,2]
[363041545,1748559043861,-481.17,0.00020273,2]
[363041546,1748559043870,-662.19,0.00020273,2]
[363041548,1748559043879,-567.40076255,0.00020273,2]
[363041550,1748559043888,-3674.83,0.00020273,2]
[363041552,1748559043897,-430.0,0.00020273,2]
[363041554,1748559043906,-430.0,0.00020273,2]
[363041556,1748559043915,-430.0,0.00020273,2]
[363041559,1748559043924,-430.0,0.00020273,2]
[363041560,1748559043933,-589.21,0.00020273,2]
[363041563,1748559043943,-2053.24,0.00020273,2]
[363041564,1748559043952,-430.0,0.00020273,2]
[363041566,1748559043961,-430.0,0.00020273,2]
[363041568,1748559043971,-430.0,0.00020273,2]
[363041570,1748559043980,-720.56,0.00020273,2]
[363041572,1748559043989,-696.31,0.00020273,2]
[363041573,1748559043999,-2613.16,0.00020273,2]
[363041574,1748559044012,-430.0,0.00020273,2]
[363041576,1748559044021,-430.0,0.00020273,2]
[363041578,1748559044031,-430.0,0.00020273,2]
[363041580,1748559044040,-530.12020817,0.00020273,2]
[363041582,1748559044050,-430.0,0.00020273,2]
[363041584,1748559044061,-430.0,0.00020273,2]
[363041586,1748559044071,-4412.79,0.00020273,2]
[363041588,1748559044081,-968.5,0.00020273,2]
[363041590,1748559044091,-157.472922,0.00020273,2]
[363041592,1748559044100,-430.0,0.00020273,2]
[363041594,1748559044109,-517.0,0.00020273,2]
[363041596,1748559044119,-644.49,0.00020273,2]
[363041598,1748559044129,-430.0,0.00020273,2]
[363041600,1748559044138,-430.0,0.00020273,2]
[363041602,1748559044147,-953.49,0.00020273,2]
[363041604,1748559044156,-262.88115435,0.00020273,2]
[363041606,1748559044166,-2879.71,0.00020273,2]
[363041608,1748559044175,-458.78,0.00020273,2]
[363041610,1748559044185,-697.57,0.00020273,2]
[363041612,1748559044194,-430.0,0.00020273,2]
[363041614,1748559044203,-3822.31,0.00020273,2]
[363041616,1748559044212,-430.0,0.00020273,2]
[363041618,1748559044221,-848.19,0.00020273,2]
[363041620,1748559044231,-1041.37,0.00020273,2]
[363041622,1748559044240,-456.06,0.00020273,2]
[363041624,1748559044249,-155.0,0.00020273,2]
[363041626,1748559044258,-8172.02,0.00020273,2]
[363041628,1748559044267,-1022.41,0.00020273,2]
[363041630,1748559044276,-1425.87,0.00020273,2]
[363041632,1748559044286,-5104.13,0.00020273,2]
[363041634,1748559044295,-1326.38,0.00020273,2]
[363041636,1748559044304,-873.84,0.00020273,2]
[363041638,1748559044313,-7369.0,0.00020273,2]
[363041640,1748559044323,-467.28,0.00020273,2]
[363041642,1748559044332,-500.0,0.00020273,2]
[363041644,1748559044342,-430.0,0.00020273,2]